fUSD/lending_fUSD_20240331
["ID","MTS","AMOUNT","RATE_DAILY","PERIOD"]
[321075510,1711880309762,-156.31220759,0.00051944,60]
[321075511,1711880309787,-1000.0,0.00051999,120]
[321075512,1711880309814,-100000.0,0.00052,52]
[321075513,1711880309842,-550.0,0.00052,120]
[321075514,1711880309866,-163.41322622,0.00052,30]
[321075515,1711880309889,-16528.0,0.00052,120]
[321075516,1711880309912,-150.0,0.00052,30]
[321075517,1711880309937,-191802.13763484,0.00052,120]
[321075518,1711880309960,-2281.11759739,0.00052,90]
[321075519,1711880309984,-9026.83653158,0.00052,120]
[321075520,1711880310008,-160.631939,0.00052054,60]
[321075521,1711880310031,-160.631939,0.00052054,60]
[321075522,1711880310055,-160.631939,0.00052054,60]
[321075523,1711880310079,-160.631939,0.00052054,60]
[321075524,1711880310103,-2295.5,0.00052054,120]
[321075525,1711880310131,-2295.5,0.00052054,120]
[321075526,1711880310154,-2295.5,0.00052054,120]
[321075527,1711880310178,-2295.5,0.00052054,120]
[321075528,1711880310201,-2295.5,0.00052054,120]
[321075529,1711880310225,-2295.5,0.00052054,120]
[321075530,1711880310250,-2295.5,0.00052054,120]
[321075531,1711880310274,-2295.5,0.00052054,120]
[321075532,1711880310298,-2295.5,0.00052054,120]
[321075533,1711880310322,-2295.5,0.00052054,120]
[321075534,1711880310346,-2295.5,0.00052054,120]
[321075535,1711880310371,-2295.5,0.00052054,120]
[321075536,1711880310395,-2295.5,0.00052054,120]
[321075537,1711880310419,-2295.5,0.00052054,120]
[321075538,1711880310443,-2295.5,0.00052054,120]
[321075539,1711880310472,-2295.5,0.00052054,120]
[321075540,1711880310497,-2295.5,0.00052054,120]
[321075541,1711880310520,-2295.5,0.00052054,120]
[321075542,1711880310547,-2295.5,0.00052054,120]
[321075543,1711880310571,-2295.5,0.00052054,120]
[321075544,1711880310596,-2295.5,0.00052054,120]
[321075545,1711880310620,-2295.5,0.00052054,120]
[321075546,1711880310645,-2295.5,0.00052054,120]
[321075547,1711880310671,-2295.54281742,0.00052054,120]
[321075548,1711880310695,-14996.77,0.00052055,30]
[321075549,1711880310951,17608.0,0.000511,120]
[321075550,1711880311256,1363.7265858,0.00051,120]
[321075551,1711880312247,153949.49226046,0.00045,30]
[321075552,1711880315891,3147.32686054,0.00049,120]
[321075553,1711880322702,9128.39554349,0.00052054,120]
[321075554,1711880324210,29221.79504374,0.00042,120]
[321075555,1711880399188,-5688.14311796,0.00031931,4]
[321075556,1711880401988,428.46360085,0.00041756,30]
[321075557,1711880402219,1000.0,0.00041756,30]
[321075558,1711880403366,1000.0,0.00041756,30]
[321075559,1711880404587,1000.0,0.00041756,30]
[321075560,1711880405634,1024.32641193,0.00041756,30]
[321075561,1711880408500,191.34402594,0.00018841,2]
[321075562,1711880408523,1.14597406,0.00018841,2]
[321075563,1711880420618,1245.2174,0.00041756,30]
[321075564,1711880425425,289.0,0.00041756,120]
[321075565,1711880525875,159.501016,0.00041756,30]
[321075566,1711880529146,1000.0,0.00041756,30]
[321075567,1711880541855,1000.0,0.00041756,120]
[321075568,1711880553546,1000.0,0.00041756,30]
[321075569,1711880553861,1000.0,0.00041756,30]
[321075570,1711880554318,1000.0,0.00041756,30]
[321075571,1711880554538,1000.0,0.00041756,30]
[321075572,1711880555208,1000.0,0.00041756,30]
[321075573,1711880555563,204.42748167,0.00041756,30]
[321075574,1711880556349,1000.0,0.00041756,30]
[321075575,1711880556946,1072.0,0.00041756,30]
[321075576,1711880567227,1000.0,0.00041756,30]
[321075577,1711880579909,1000.0,0.00041756,60]
[321075578,1711880592595,1000.0,0.00041756,60]
[321075579,1711880605287,1000.0,0.00041756,120]
[321075580,1711880618092,1000.0,0.00041756,60]
[321075581,1711880630798,1000.0,0.00041756,30]
[321075582,1711880643502,1000.0,0.00041756,30]
[321075583,1711880652012,157.591198,0.00041756,40]
[321075584,1711880653234,157.591198,0.00041756,40]
[321075585,1711880654559,157.591198,0.00041756,40]
[321075586,1711880656186,1000.0,0.00041756,120]
[321075587,1711880656528,157.591198,0.00041756,40]
[321075588,1711880658123,157.591198,0.00041756,40]
[321075589,1711880659948,157.591198,0.00041756,40]
[321075590,1711880662693,960.0,0.00041756,30]
[321075591,1711880663307,157.591198,0.00041756,40]
[321075592,1711880664661,157.591198,0.00041756,40]
[321075593,1711880665958,157.591198,0.00041756,40]
[321075594,1711880667589,157.59119788,0.00041756,40]
[321075595,1711880668877,1000.0,0.00041756,60]
[321075596,1711880671549,1176.54922339,0.00041756,60]
[321075597,1711880681578,1000.0,0.00041756,60]
[321075598,1711880694269,1000.0,0.00041756,30]
[321075599,1711880706975,1000.0,0.00041756,60]
[321075600,1711880719851,1000.0,0.00041756,30]
[321075601,1711880732542,1000.0,0.00041756,60]
[321075602,1711880741560,947.0,0.00041756,30]
[321075603,1711880745238,1000.0,0.00041756,30]
[321075604,1711880757938,1000.0,0.00041756,60]
[321075605,1711880770655,1000.0,0.00041792,30]
[321075606,1711880783354,1000.0,0.00041792,30]
[321075607,1711880796055,1000.0,0.00041792,30]
[321075608,1711880808765,1000.0,0.00041792,30]
[321075609,1711880821470,1000.0,0.00041792,30]
[321075610,1711880834169,1000.0,0.00041792,120]
[321075615,1711880846885,1000.0,0.00041792,120]
[321075617,1711880859577,1000.0,0.00041792,60]
[321075618,1711880867349,187.0,0.00041792,30]
[321075619,1711880868157,187.0,0.00041792,30]
[321075620,1711880869034,187.0,0.00041792,30]
[321075621,1711880870096,200.0,0.00041792,30]
[321075622,1711880870623,174.0,0.00041792,30]
[321075623,1711880872285,1000.0,0.00041792,30]
[321075624,1711880884989,1000.0,0.00041792,120]
[321075625,1711880897689,1000.0,0.00041792,30]
[321075626,1711880910389,1000.0,0.00041792,60]
[321075627,1711880923091,1000.0,0.00041792,30]
[321075628,1711880935795,1000.0,0.00041792,30]
[321075629,1711880948494,1000.0,0.00041792,30]
[321075630,1711880961186,906.97,0.00041792,60]
[321075634,1711881008672,500.0,0.000274,7]
[321075640,1711881031852,-330.69382779,0.00031059,2]
[321075641,1711881032013,-746.22848494,0.00031059,2]
[321075642,1711881032026,-648.65949507,0.00031059,2]
[321075643,1711881032067,-5992.49763413,0.00031059,2]
[321075644,1711881032083,-5637.62349635,0.00031059,2]
[321075645,1711881032093,-302.76001576,0.00031157,4]
[321075646,1711881032102,-547.16350628,0.00031158,2]
[321075647,1711881032111,-277.84184082,0.00031159,4]
[321075648,1711881032120,-170.67,0.00031367,2]
[321075649,1711881032129,-350.0,0.00033,3]
[321075650,1711881032138,-400.0,0.00035,3]
[321075651,1711881032148,-267.0,0.000353,3]
[321075652,1711881032158,-712.61418707,0.00035891,4]
[321075653,1711881032167,-450.0,0.00037,3]
[321075654,1711881032176,-347.86,0.00037652,2]
[321075655,1711881032187,-165.52512877,0.00038595,7]
[321075656,1711881032196,-191.40000001,0.00038628,7]
[321075657,1711881032205,-153.71574397,0.00038904,7]
[321075658,1711881032215,-500.0,0.00039,3]
[321075659,1711881032224,-642.4,0.00039048,2]
[321075660,1711881032233,-590.03,0.00039136,2]
[321075661,1711881032242,-275.0,0.0003925,3]
[321075662,1711881032251,-150.0,0.0003925,4]
[321075663,1711881032260,-181.677853,0.00039251,2]
[321075664,1711881032269,-3293.327837,0.00039251,2]
[321075665,1711881032279,-1000.0,0.00039259,2]
[321075667,1711881032288,-152.59,0.00039413,15]
[321075669,1711881032296,-254.63,0.00039414,2]
[321075671,1711881032305,-162.78,0.00039552,2]
[321075673,1711881032314,-3293.327837,0.00039742,2]
[321075674,1711881032324,-511.83599996,0.0003978,4]
[321075675,1711881032334,-162.44496167,0.00039879,7]
[321075676,1711881032342,-347.86,0.00039916,2]
[321075677,1711881032351,-155.0,0.0004,15]
[321075678,1711881032360,-217.62557543,0.0004,2]
[321075679,1711881032369,-3144.12142798,0.0004,2]
[321075680,1711881032378,-1384.9300733,0.00040178,4]
[321075681,1711881032388,-3293.327837,0.00040232,2]
[321075682,1711881032396,-150.0,0.00040288,120]
[321075683,1711881032406,-3293.327837,0.00040723,2]
[321075684,1711881032415,-419.30948471,0.00040898,4]
[321075685,1711881032425,-589.41010986,0.000409,2]
[321075686,1711881032437,-410.58989014,0.000409,2]
[321075687,1711881032447,-106.01520576,0.000409,2]
[321075688,1711881032458,-567.14,0.000409,2]
[321075689,1711881032469,-592.45379424,0.000409,2]
[321075690,1711881032478,-156.41895585,0.00040957,30]
[321075691,1711881032488,-1657.31638247,0.00040961,4]
[321075697,1711881037960,-500.0,0.0004,30]
[321075698,1711881037971,-2902.01948134,0.00040961,4]
[321075699,1711881037980,-192.48603496,0.00040994,2]
[321075700,1711881037990,-183.90224564,0.00040995,2]
[321075701,1711881037999,-1127.70933976,0.00040995,2]
[321075702,1711881038008,-4511.90975733,0.00040995,2]
[321075703,1711881038018,-421.19175267,0.00040998,60]
[321075704,1711881038027,-2205.7779112,0.00040998,4]
[321075705,1711881038037,-248.46362783,0.00040998,4]
[321075706,1711881038125,-1776.04962931,0.00040998,4]
[321075707,1711881038181,-444.11719502,0.00040998,4]
[321075708,1711881038193,-6564.86017348,0.00040998,4]
[321075709,1711881038205,-3505.15928211,0.00040998,4]
[321075710,1711881038218,-1006.28091358,0.00040998,4]
[321075711,1711881038239,-1345.81534778,0.00040998,4]
[321075736,1711881040245,-7148.19456565,0.00040998,4]
[321075737,1711881040256,-4990.995237,0.00040999,4]
[321075738,1711881040266,-3120.80192136,0.00040999,4]
[321075739,1711881040275,-299.999999,0.00041,2]
[321075740,1711881040285,-550.0,0.00041,3]
[321075741,1711881040294,-150.0,0.00041,16]
[321075742,1711881040303,-3299.0464511,0.00041,12]
[321075743,1711881040313,-3299.0464511,0.00041,12]
[321075744,1711881040323,-3299.0464511,0.00041,12]
[321075745,1711881040333,-3299.0464511,0.00041,12]
[321075746,1711881040343,-3299.0464511,0.00041,12]
[321075747,1711881040353,-3299.0464511,0.00041,12]
[321075748,1711881040362,-3299.0464511,0.00041,12]
[321075749,1711881040372,-3299.0464511,0.00041,12]
[321075750,1711881040382,-3299.0464511,0.00041,12]
[321075751,1711881040392,-3299.0454511,0.00041,12]
[321075752,1711881040401,-473.0,0.00041,16]
[321075753,1711881040411,-174.0,0.00041,27]
[321075754,1711881040421,-266.0,0.00041,49]
[321075755,1711881040432,-212.0,0.00041014,4]
[321075756,1711881040443,-1011.84528353,0.00041037,30]
[321075757,1711881040453,-163.17,0.00041085,2]
[321075758,1711881040462,-234.98173619,0.00041094,31]
[321075759,1711881040472,-503.64704303,0.00041095,4]
[321075760,1711881040482,-538.11909546,0.00041095,4]
[321075761,1711881040676,-512.75202378,0.00041095,4]
[321075762,1711881040686,-515.04680445,0.00041095,4]
[321075763,1711881040695,-500.0,0.00041095,4]
[321075764,1711881040705,-528.21362194,0.00041095,4]
[321075765,1711881040715,-235.18854366,0.00041095,4]
[321075766,1711881040724,-531.77194455,0.00041095,4]
[321075767,1711881040734,-585.31193774,0.00041095,4]
[321075768,1711881040744,-523.8902397,0.00041095,4]
[321075769,1711881040754,-534.78957531,0.00041095,4]
[321075770,1711881040764,-524.7698039,0.00041095,4]
[321075771,1711881040774,-521.64321844,0.00041095,4]
[321075772,1711881040783,-500.0,0.00041095,4]
[321075773,1711881040792,-500.0,0.00041095,4]
[321075774,1711881040802,-500.0,0.00041095,4]
[321075775,1711881040810,-500.0,0.00041095,4]
[321075776,1711881040820,-539.64646036,0.00041095,4]
[321075777,1711881040829,-268.9450376,0.00041095,4]
[321075778,1711881040839,-523.03656239,0.00041095,4]
[321075779,1711881040848,-525.22784069,0.00041095,4]
[321075780,1711881040857,-500.0,0.00041095,4]
[321075781,1711881040867,-520.84492195,0.00041095,4]
[321075782,1711881040876,-190.07816473,0.00041095,4]
[321075783,1711881040885,-500.0,0.00041095,4]
[321075784,1711881040895,-522.43293672,0.00041095,4]
[321075785,1711881040904,-521.36074622,0.00041095,4]
[321075786,1711881040914,-527.2250316,0.00041095,4]
[321075787,1711881040923,-500.0,0.00041095,4]
[321075788,1711881040932,-530.26831898,0.00041095,4]
[321075789,1711881040943,-536.97347846,0.00041095,4]
[321075790,1711881040952,-533.13641268,0.00041095,4]
[321075791,1711881040962,-517.47582248,0.00041095,4]
[321075792,1711881040971,-521.42007275,0.00041095,4]
[321075793,1711881040981,-520.60808472,0.00041095,4]
[321075794,1711881040990,-602.79293713,0.00041095,4]
[321075795,1711881040999,-532.59300291,0.00041095,4]
[321075796,1711881041008,-527.75860318,0.00041095,4]
[321075797,1711881041018,-523.1574262,0.00041095,4]
[321075798,1711881041027,-518.14785335,0.00041095,4]
[321075799,1711881041037,-516.7331297,0.00041095,4]
[321075800,1711881041046,-511.90145376,0.00041095,4]
[321075801,1711881041056,-532.54755403,0.00041095,4]
[321075802,1711881041065,-517.6725386,0.00041095,4]
[321075803,1711881041074,-517.279043,0.00041095,4]
[321075804,1711881041084,-516.59420535,0.00041095,4]
[321075805,1711881041095,-523.51569179,0.00041095,4]
[321075806,1711881041104,-500.0,0.00041095,4]
[321075807,1711881041113,-517.55954181,0.00041095,4]
[321075808,1711881041123,-500.0,0.00041095,4]
[321075809,1711881041133,-500.0,0.00041095,4]
[321075810,1711881041142,-518.30400862,0.00041095,4]
[321075811,1711881041151,-518.19779719,0.00041095,4]
[321075812,1711881041161,-500.0,0.00041095,4]
[321075813,1711881041170,-500.0,0.00041095,4]
[321075814,1711881041180,-500.0,0.00041095,4]
[321075815,1711881041190,-514.6923685,0.00041095,4]
[321075816,1711881041200,-521.85803913,0.00041095,4]
[321075817,1711881041209,-500.0,0.00041095,4]
[321075818,1711881041219,-514.23656389,0.00041095,4]
[321075819,1711881041229,-500.17552615,0.00041095,4]
[321075820,1711881041239,-500.0,0.00041095,4]
[321075821,1711881041248,-573.75744215,0.00041095,4]
[321075822,1711881041257,-525.63490595,0.00041095,4]
[321075823,1711881041267,-500.0,0.00041095,4]
[321075824,1711881041276,-500.0,0.00041095,4]
[321075825,1711881041285,-500.0,0.00041095,4]
[321075826,1711881041294,-500.0,0.00041095,4]
[321075827,1711881041303,-500.0,0.00041095,4]
[321075828,1711881041313,-500.0,0.00041095,4]
[321075829,1711881041322,-500.0,0.00041095,4]
[321075830,1711881041331,-500.0,0.00041095,4]
[321075831,1711881041341,-529.17388243,0.00041095,4]
[321075832,1711881041351,-335.59118139,0.00041095,4]
[321075833,1711881041360,-500.0,0.00041095,2]
[321075834,1711881041369,-500.0,0.00041095,4]
[321075835,1711881041378,-500.0,0.00041095,4]
[321075836,1711881041387,-516.79850251,0.00041095,4]
[321075837,1711881041396,-500.0,0.00041095,4]
[321075838,1711881041408,-524.43227844,0.00041095,4]
[321075839,1711881041418,-500.0,0.00041095,4]
[321075840,1711881041429,-627.98,0.00041095,4]
[321075841,1711881041440,-519.22069657,0.00041095,4]
[321075842,1711881041449,-500.0,0.00041095,4]
[321075843,1711881041458,-567.58891169,0.00041095,4]
[321075844,1711881041467,-500.0,0.00041095,4]
[321075845,1711881041476,-211.82905181,0.00041095,4]
[321075846,1711881041485,-523.83352966,0.00041095,4]
[321075847,1711881041494,-500.0,0.00041095,4]
[321075848,1711881041503,-500.0,0.00041095,4]
[321075849,1711881041512,-500.0,0.00041095,4]
[321075850,1711881041521,-500.0,0.00041095,4]
[321075851,1711881041531,-517.0,0.00041095,4]
[321075852,1711881041540,-500.0,0.00041095,4]
[321075853,1711881041549,-537.77295656,0.00041095,4]
[321075854,1711881041558,-448.14220601,0.00041095,4]
[321075855,1711881041567,-515.8595466,0.00041095,4]
[321075856,1711881041577,-502.43944922,0.00041095,4]
[321075857,1711881041586,-500.0,0.00041095,4]
[321075858,1711881041595,-500.0,0.00041095,4]
[321075859,1711881041605,-500.0,0.00041095,4]
[321075860,1711881041615,-500.0,0.00041095,4]
[321075861,1711881041624,-500.0,0.00041095,4]
[321075862,1711881041633,-500.0,0.00041095,4]
[321075863,1711881041642,-500.0,0.00041095,4]
[321075864,1711881041652,-1000.0,0.00041095,7]
[321075865,1711881041666,-500.0,0.00041095,4]
[321075866,1711881041675,-500.0,0.00041095,4]
[321075867,1711881041685,-500.0,0.00041095,4]
[321075868,1711881041695,-311.37375601,0.00041095,4]
[321075869,1711881041705,-500.0,0.00041095,4]
[321075870,1711881041715,-500.0,0.00041095,4]
[321075871,1711881041724,-500.0,0.00041095,4]
[321075872,1711881041734,-500.0,0.00041095,4]
[321075873,1711881041743,-500.0,0.00041095,4]
[321075874,1711881041753,-500.0,0.00041095,4]
[321075875,1711881041762,-531.14090817,0.00041095,4]
[321075876,1711881041771,-500.0,0.00041095,4]
[321075877,1711881041781,-532.05180299,0.00041095,4]
[321075878,1711881041790,-500.0,0.00041095,4]
[321075879,1711881041798,-520.82682668,0.00041095,4]
[321075880,1711881041807,-500.0,0.00041095,4]
[321075881,1711881041817,-500.0,0.00041095,4]
[321075882,1711881041826,-518.77101516,0.00041095,4]
[321075883,1711881041835,-500.0,0.00041095,4]
[321075884,1711881041845,-500.0,0.00041095,4]
[321075885,1711881041854,-500.0,0.00041095,4]
[321075886,1711881041863,-500.0,0.00041095,4]
[321075887,1711881041872,-512.20321692,0.00041095,4]
[321075888,1711881041881,-500.0,0.00041095,4]
[321075889,1711881041890,-500.0,0.00041095,4]
[321075890,1711881041899,-1013.03,0.00041095,4]
[321075891,1711881041908,-500.0,0.00041095,4]
[321075892,1711881041917,-504.04203705,0.00041095,4]
[321075893,1711881041927,-500.0,0.00041095,4]
[321075894,1711881041936,-500.0,0.00041095,4]
[321075895,1711881041946,-500.0,0.00041095,4]
[321075896,1711881041955,-500.0,0.00041095,4]
[321075897,1711881041964,-500.0,0.00041095,4]
[321075898,1711881041973,-500.0,0.00041095,4]
[321075899,1711881041983,-500.0,0.00041095,4]
[321075900,1711881041992,-500.0,0.00041095,4]
[321075901,1711881042001,-500.0,0.00041095,4]
[321075902,1711881042010,-500.0,0.00041095,4]
[321075903,1711881042019,-500.0,0.00041095,4]
[321075904,1711881042029,-500.0,0.00041095,4]
[321075905,1711881042038,-500.0,0.00041095,4]
[321075906,1711881042048,-500.0,0.00041095,4]
[321075907,1711881042057,-500.0,0.00041095,4]
[321075908,1711881042066,-522.98476219,0.00041095,4]
[321075909,1711881042075,-500.0,0.00041095,2]
[321075910,1711881042084,-500.0,0.00041095,4]
[321075911,1711881042094,-519.98428653,0.00041095,4]
[321075912,1711881042104,-500.0,0.00041095,4]
[321075913,1711881042113,-540.56299866,0.00041095,4]
[321075914,1711881042124,-500.0,0.00041095,4]
[321075915,1711881042134,-219.94365606,0.00041095,4]
[321075916,1711881042144,-503.04966012,0.00041095,4]
[321075917,1711881042154,-332.8891804,0.00041095,4]
[321075918,1711881042164,-535.44320273,0.00041095,4]
[321075919,1711881042174,-500.0,0.00041095,4]
[321075920,1711881042183,-500.0,0.00041095,4]
[321075921,1711881042194,-500.0,0.00041095,4]
[321075922,1711881042203,-500.0,0.00041095,4]
[321075923,1711881042212,-500.0,0.00041095,4]
[321075924,1711881042222,-500.0,0.00041095,4]
[321075925,1711881042231,-500.0,0.00041095,4]
[321075926,1711881042240,-514.2,0.00041095,4]
[321075927,1711881042249,-500.0,0.00041095,4]
[321075928,1711881042258,-519.50902555,0.00041095,4]
[321075929,1711881042267,-592.79226554,0.00041095,4]
[321075930,1711881042277,-500.0,0.00041095,4]
[321075931,1711881042286,-520.93788904,0.00041095,4]
[321075932,1711881042297,-174.63039089,0.00041095,4]
[321075933,1711881042307,-498.54487795,0.00041095,4]
[321075934,1711881042316,-520.64752012,0.00041095,4]
[321075935,1711881042326,-500.0,0.00041095,4]
[321075936,1711881042335,-523.48,0.00041095,4]
[321075937,1711881042345,-500.0,0.00041095,4]
[321075938,1711881042354,-500.0,0.00041095,4]
[321075939,1711881042364,-500.0,0.00041095,4]
[321075940,1711881042373,-500.0,0.00041095,4]
[321075941,1711881042382,-500.0,0.00041095,4]
[321075942,1711881042391,-540.16956405,0.00041095,4]
[321075943,1711881042400,-500.0,0.00041095,4]
[321075944,1711881042411,-500.0,0.00041095,4]
[321075945,1711881042420,-500.0,0.00041095,4]
[321075946,1711881042429,-500.0,0.00041095,4]
[321075947,1711881042438,-500.0,0.00041095,4]
[321075948,1711881042447,-500.0,0.00041095,4]
[321075949,1711881042457,-500.0,0.00041095,4]
[321075950,1711881042466,-500.0,0.00041095,4]
[321075951,1711881042476,-592.49,0.00041095,4]
[321075952,1711881042486,-485.23937847,0.00041095,4]
[321075953,1711881042496,-500.0,0.00041095,4]
[321075954,1711881042505,-500.0,0.00041095,4]
[321075955,1711881042515,-500.0,0.00041095,4]
[321075956,1711881042524,-500.0,0.00041095,4]
[321075957,1711881042533,-291.06661817,0.00041095,4]
[321075958,1711881042542,-502.33042873,0.00041095,2]
[321075959,1711881042551,-500.0,0.00041095,4]
[321075960,1711881042561,-520.58298575,0.00041095,4]
[321075961,1711881042570,-500.0,0.00041095,4]
[321075962,1711881042583,-500.0,0.00041095,4]
[321075963,1711881042593,-440.57593369,0.00041095,4]
[321075964,1711881042603,-532.29023659,0.00041095,4]
[321075965,1711881042612,-500.0,0.00041095,4]
[321075966,1711881042621,-150.0,0.00041095,4]
[321075967,1711881042630,-500.0,0.00041095,4]
[321075968,1711881042639,-513.83957324,0.00041095,4]
[321075969,1711881042649,-500.0,0.00041095,4]
[321075970,1711881042659,-500.0,0.00041095,4]
[321075971,1711881042671,-634.42,0.00041095,4]
[321075972,1711881042681,-500.0,0.00041095,4]
[321075973,1711881042691,-305.74622468,0.00041095,4]
[321075974,1711881042700,-500.0,0.00041095,4]
[321075975,1711881042710,-525.25183465,0.00041095,4]
[321075976,1711881042719,-500.0,0.00041095,4]
[321075977,1711881042729,-500.0,0.00041095,4]
[321075978,1711881042738,-500.0,0.00041095,4]
[321075979,1711881042748,-500.0,0.00041095,4]
[321075980,1711881042757,-532.91555032,0.00041095,4]
[321075981,1711881042766,-563.30314531,0.00041095,4]
[321075983,1711881042775,-531.01920422,0.00041095,4]
[321075984,1711881042785,-517.52709521,0.00041095,4]
[321075985,1711881042794,-601.1545966,0.00041095,4]
[321075986,1711881042803,-537.47616213,0.00041095,4]
[321075987,1711881042812,-507.03,0.00041095,4]
[321075988,1711881042822,-541.77115626,0.00041095,4]
[321075989,1711881042831,-500.0,0.00041095,4]
[321075990,1711881042841,-533.01,0.00041095,4]
[321075991,1711881042851,-515.92811408,0.00041095,4]
[321075992,1711881042860,-500.0,0.00041095,4]
[321075995,1711881042869,-500.0,0.00041095,4]
[321075997,1711881042878,-592.02,0.00041095,4]
[321075999,1711881042887,-500.0,0.00041095,4]
[321076001,1711881042897,-500.0,0.00041095,4]
[321076003,1711881042906,-227.1844135,0.00041095,4]
[321076004,1711881042916,-500.0,0.00041095,4]
[321076005,1711881042925,-500.0,0.00041095,4]
[321076006,1711881042934,-531.05228071,0.00041095,4]
[321076007,1711881042943,-500.0,0.00041095,4]
[321076008,1711881042952,-500.0,0.00041095,4]
[321076009,1711881042962,-500.0,0.00041095,4]
[321076010,1711881042971,-516.48458818,0.00041095,4]
[321076011,1711881042980,-500.0,0.00041095,4]
[321076012,1711881042990,-500.0,0.00041095,4]
[321076013,1711881043000,-500.0,0.00041095,4]
[321076014,1711881043009,-536.97248718,0.00041095,4]
[321076015,1711881043020,-520.3024946,0.00041095,4]
[321076016,1711881043029,-265.39712099,0.00041095,4]
[321076017,1711881043038,-567.76550582,0.00041095,4]
[321076018,1711881043048,-500.0,0.00041095,4]
[321076019,1711881043057,-500.0,0.00041095,4]
[321076020,1711881043067,-314.57697891,0.00041095,4]
[321076021,1711881043077,-536.43348658,0.00041095,4]
[321076022,1711881043087,-269.82888611,0.00041095,4]
[321076023,1711881043096,-315.10738453,0.00041095,4]
[321076024,1711881043105,-520.48692328,0.00041095,4]
[321076025,1711881043114,-540.91,0.00041095,4]
[321076026,1711881043123,-523.85120445,0.00041095,4]
[321076027,1711881043133,-500.0,0.00041095,4]
[321076028,1711881043142,-500.0,0.00041095,4]
[321076029,1711881043151,-500.0,0.00041095,4]
[321076030,1711881043161,-500.0,0.00041095,4]
[321076031,1711881043170,-539.66360665,0.00041095,4]
[321076032,1711881043179,-539.74371625,0.00041095,4]
[321076033,1711881043189,-500.0,0.00041095,4]
[321076034,1711881043200,-500.0,0.00041095,4]
[321076035,1711881043210,-521.59224756,0.00041095,4]
[321076036,1711881043219,-519.46667455,0.00041095,4]
[321076037,1711881043229,-500.0,0.00041095,4]
[321076038,1711881043241,-294.86023074,0.00041095,4]
[321076039,1711881043251,-500.0,0.00041095,4]
[321076040,1711881043261,-500.0,0.00041095,4]
[321076041,1711881043270,-526.43767179,0.00041095,4]
[321076042,1711881043280,-1223.41,0.00041095,4]
[321076043,1711881043289,-500.0,0.00041095,4]
[321076044,1711881043297,-521.72458716,0.00041095,4]
[321076045,1711881043307,-509.81529594,0.00041095,4]
[321076046,1711881043316,-500.0,0.00041095,4]
[321076047,1711881043326,-500.0,0.00041095,4]
[321076048,1711881043335,-515.8016047,0.00041095,4]
[321076049,1711881043344,-521.43594004,0.00041095,4]
[321076050,1711881043353,-500.0,0.00041095,4]
[321076051,1711881043362,-500.0,0.00041095,4]
[321076052,1711881043371,-573.31633252,0.00041095,4]
[321076053,1711881043382,-500.0,0.00041095,4]
[321076054,1711881043392,-500.0,0.00041095,4]
[321076055,1711881043402,-500.0,0.00041095,4]
[321076056,1711881043411,-518.99877342,0.00041095,4]
[321076057,1711881043420,-500.0,0.00041095,4]
[321076058,1711881043430,-500.0,0.00041095,4]
[321076059,1711881043441,-520.9226535,0.00041095,4]
[321076060,1711881043450,-500.0,0.00041095,4]
[321076061,1711881043460,-582.51194119,0.00041095,4]
[321076062,1711881043469,-515.54963589,0.00041095,4]